Cogmind - Beta 14 X2 @@@ ROGUE MODE // 2024.08.03 @ 16:23:11 Player: Minty Result: Self-destructed Performance ------------- Evolutions (1) 500 Regions Visited (2) 400 Robots Destroyed (27) 135 Value Destroyed (570) 570 Prototype IDs (0) 0 Alien Tech Used (0) 0 Bonus (23) 23 TOTAL SCORE: 1628 Bonus ------- High Alert Combat Kills 23 Cogmind --------- Core Integrity 322/400 Matter 150/300 Energy 100/100 System Corruption 0% Temperature Cool (0) Movement Rolling (80) Location -9/Materials Parts ------- > --- POWER (1) -------- (None) > --- PROPULSION (2) --- Wheel Wheel > --- UTILITY (4) ------ Small Storage Unit Visual Processing Unit > --- WEAPON (2) ------- Light Cannon > --- INVENTORY (8) ---- Improved Ion Engine Light Treads Light Treads Wheel Wheel High-capacity Matter Pod (200) Authchip [R/Combat] Particle Cannon Peak State ------------ > --- POWER ------------ Light Ion Engine > --- PROPULSION ------- Wheel Wheel > --- UTILITY ---------- Small Storage Unit Visual Processing Unit Weapon Shielding Light Armor Plating > --- WEAPON ----------- Light Cannon Light Cannon > --- INVENTORY -------- Improved Ion Engine Light Treads Light Treads Wheel Wheel Heat Sink High-capacity Matter Pod Particle Cannon [Rating: 11] Favorites ----------- Power Light Ion Engine Engine Light Ion Engine Propulsion Wheel Leg Aluminum Leg Wheel Wheel Utility Small Storage Unit Device Heat Sink Storage Small Storage Unit Processor Visual Processing Unit Protection Weapon Shielding Weapon Light Cannon Energy Gun EM Pulse Gun Ballistic Gun Light Assault Rifle Ballistic Cannon Light Cannon Build | -11 -10 -9 ------- Run | Yrd Mat Mat Slots Evolved 2 | . . 2 Power . | . . . Propulsion . | . . . Utility 2 | . . 2 Weapon . | . . . Parts Attached 15 | . 10 5 Power 1 | . 1 . Engine 1 | . 1 . Core . | . . . Reactor . | . . . Propulsion 3 | . 2 1 Treads . | . . . Leg . | . . . Wheel 3 | . 2 1 Hover . | . . . Flight . | . . . Utility 7 | . 3 4 Device 3 | . 2 1 Storage . | . . . Processor 1 | . 1 . Hackware . | . . . Protection 3 | . . 3 Artifact . | . . . Weapon 4 | . 4 . Energy Gun 2 | . 2 . Energy Cannon . | . . . Ballistic Gun . | . . . Ballistic Cannon 2 | . 2 . Launcher . | . . . Special Weapon . | . . . Impact Weapon . | . . . Slashing Weapon . | . . . Piercing Weapon . | . . . Special Melee Weapon . | . . . Unidentified Prototypes . | . . . Parts Lost 6 | . 1 5 Power 1 | . . 1 Propulsion . | . . . Utility 4 | . 1 3 Weapon 1 | . . 1 Highest Loss Streak 4 | . 1 4 To Critical Strikes . | . . . Average Slot Usage (%) 97 | . 98 96 Engine 12 | . 14 11 Leg 9 | . 18 . Wheel 15 | . 9 22 Device 6 | . 10 1 Storage 12 | . 14 11 Processor 6 | . 2 11 Protection 8 | . . 17 Energy Gun 8 | . 15 . Ballistic Gun 3 | . 6 . Ballistic Cannon 13 | . 5 22 Naked Turns . | . . . Heaviest Build 18 | 11 15 18 Greatest Support 20 | 20 20 20 Greatest Overweight (x) . | . . . Average Overweight (x) . | . . . Largest Inventory Capacity 8 | 8 8 8 Average Capacity 8 | 8 8 8 Most Carried 8 | 6 8 8 Average Carried 7 | 6 7 7 Final Capacity 8 | 8 8 8 Final Carried 8 | 6 8 8 Class Distribution -------------------- 100% | Mutant Dominant Class ---------------- Mutant | -10/Materials Mutant | -9/Materials Resources | -11 -10 -9 ----------- Run | Yrd Mat Mat Matter Collected 724 | 200 321 203 Remotely 63 | . 63 . Salvage Created 885 | . 502 383 Parts 60 | . 25 35 Haulers Intercepted 2 | . 1 1 Recyclers Shooed 1 | . 1 . Parts Field Recycled . | . . . Retrieved Matter . | . . . Parts Self-Destructed . | . . . Prevented . | . . . Kills | -11 -10 -9 ------- Run | Yrd Mat Mat Combat Hostiles Destroyed 16 | . 3 13 Guns 2 | . 2 . Cannons 13 | . . 13 AOE 1 | . 1 . Classes Destroyed 8 | . 6 2 Worker 3 | . 1 2 Hauler 2 | . 1 1 Recycler 4 | . 4 . Operator 1 | . 1 . Watcher 1 | . 1 . Swarmer 6 | . . 6 Grunt 6 | . 3 3 Sentry 4 | . . 4 Best Kill Streak 7 | . 6 7 Combat Bots Only 7 | . 2 7 Max Kills in Single Turn 5 | . 5 2 Gunslinging . | . . . Exploded 1 | . 1 . Melee . | . . . Uniques/NPCs Destroyed . | . . . Combat | -11 -10 -9 -------- Run | Yrd Mat Mat Hostile Shots Fired 119 | . 20 99 Missed 40 | . 6 34 Damage Taken 859 | . 294 565 Core 189 | . 111 78 Absorbed by Shields . | . . . Redirected to Shielding 51 | . . 51 Core Remaining (%) 77 | 100 55 . Volleys Fired 59 | . 17 42 Largest 2 | . 2 2 Hottest 80 | . 80 70 Shots Fired 115 | . 34 81 Gun 28 | . 28 . Cannon 87 | . 6 81 Launcher . | . . . Special . | . . . Kinetic 97 | . 16 81 Thermal 4 | . 4 . Explosive . | . . . Electromagnetic 14 | . 14 . Robot Hit Streak 12 | . 6 12 Robot Miss Streak 6 | . 2 6 Penetration Max . | . . . Secondary Targets . | . . . Shots Hit Robots 57 | . 21 36 Core Hits 30 | . 11 19 Critical Kills . | . . . Critical Parts Destroyed . | . . . Critical Strikes 2 | . 2 . Blast 2 | . 2 . Melee Attacks . | . . . Impact . | . . . Slashing . | . . . Piercing . | . . . Sneak Attacks . | . . . Combat Hostiles . | . . . Follow-up Attacks . | . . . Damage Inflicted 1434 | . 748 686 Guns 221 | . 221 . Cannons 752 | . 66 686 Explosions 457 | . 457 . Melee . | . . . Ramming 4 | . 4 . Kinetic 790 | . 104 686 Thermal 183 | . 183 . Explosive 298 | . 298 . Electromagnetic 159 | . 159 . Impact . | . . . Slashing . | . . . Piercing . | . . . Highest Corruption . | . . . Average Corruption . | . . . Corruption Purged . | . . . Corruption Blocked . | . . . Overload Shots . | . . . Overflow Damage 125 | . 125 . Projectiles . | . . . Explosions 125 | . 125 . Melee . | . . . Knockbacks 3 | . . 3 Impact . | . . . Kinetic 3 | . . 3 Secondary . | . . . Self-Inflicted Damage 102 | . 102 . Shots 2 | . 2 . Rammed 1 | . 1 . Targets Rammed 1 | . 1 . Kicked . | . . . Crushed . | . . . Highest Temperature 108 | . 30 108 Average Temperature 26 | . 8 29 Received Heat Transfer 156 | . 105 51 Siege Activations . | . . . Robots Corrupted . | . . . Combat Hostiles . | . . . Parts Fried . | . . . Impact Corruptions . | . . . Robots Melted . | . . . Combat Hostiles . | . . . Parts Melted . | . . . Heat Transferred 200 | . 200 . Parts Sabotaged . | . . . Parts Stolen . | . . . Parts Stripped . | . . . Power Chain Reactions 1 | . 1 . Alert | -11 -10 -9 ------- Run | Yrd Mat Mat Peak Influence 630 | . 265 630 Initial 111 | . . 111 Average 226 | . 153 316 Maximum Alert Level 2 | . 1 2 Low Security (%) 38 | 100 51 21 Level 1 50 | . 48 53 Level 2 11 | . . 24 Level 3 . | . . . Level 4 . | . . . Level 5 . | . . . High Security . | . . . Max Security . | . . . Squads Dispatched 2 | . 1 1 Investigation 1 | . . 1 Extermination . | . . . Reinforcement 1 | . 1 . Assault . | . . . Garrison . | . . . Intercept . | . . . Searches Triggered . | . . . Construction Impeded . | . . . Haulers Reinforced . | . . . Active Scanning Responses . | . . . Cargo Convoy Interrupts . | . . . Stealth | -11 -10 -9 --------- Run | Yrd Mat Mat Distress Signals 1 | . 1 . Communications Jammed . | . . . Distress Signals . | . . . Times Spotted 36 | . 6 30 Peak Tracking Total 9 | . 2 9 Tactical Retreats 3 | . . 3 Traps | -11 -10 -9 ------- Run | Yrd Mat Mat Traps Triggered . | . . . Indirectly . | . . . Trap Hack Attempts . | . . . Triggered . | . . . Disarmed . | . . . Reprogrammed . | . . . Reused . | . . . Traps Extracted . | . . . Installed . | . . . Triggered . | . . . Objects Rigged 2 | . 2 . Machines | -11 -10 -9 ---------- Run | Yrd Mat Mat Machines Disabled 5 | . 5 . Max in Single Turn 5 | . 5 . Machines Repaired . | . . . Machines Dismantled . | . . . Machines Sabotaged . | . . . Overloaded Fab Kills . | . . . Hacking | -11 -10 -9 --------- Run | Yrd Mat Mat Machines Accessed 5 | . 2 3 Terminals 4 | . 1 3 Fabricators . | . . . Repair Stations . | . . . Recycling Units 1 | . 1 . Scanalyzers . | . . . Garrison Access . | . . . Total Hacks 18 | . 8 10 Successful 11 | . 7 4 Failed 7 | . 1 6 Catastrophic . | . . . Database Lockouts . | . . . Manual 8 | . 3 5 Terminals 15 | . 5 10 Fabricators . | . . . Repair Stations . | . . . Recycling Units 3 | . 3 . Scanalyzers . | . . . Garrison Access . | . . . Terminal Hacks 4 | . 2 2 Robot Analysis 2 | . . 2 Dispatch Records 1 | . 1 . Patrol Status 1 | . 1 . Fabricator Hacks . | . . . Repair Station Hacks . | . . . Recycling Unit Hacks 2 | . 2 . Report Inventory 1 | . 1 . Retrieve Components 1 | . 1 . Scanalyzer . | . . . Garrison Access Hacks . | . . . Unauthorized Hacks 5 | . 3 2 Terminals 5 | . 3 2 Botnet 2 | . 1 1 Detonate 1 | . 1 . Operators 2 | . 1 1 Fabricators . | . . . Repair Stations . | . . . Recycling Units . | . . . Scanalyzers . | . . . Garrison Access . | . . . Data Cores Recovered . | . . . Used . | . . . Hacking Detections 5 | . 2 3 Full Trace Events 1 | . . 1 Feedback Events . | . . . Feedback Blocked . | . . . Robot Schematics Acquired . | . . . Robots Built . | . . . Authchips . | . . . Time . | . . . Total Robot Build Rating . | . . . Part Schematics Acquired . | . . . Parts Built . | . . . Authchips . | . . . Time . | . . . Total Part Build Rating . | . . . Parts Repaired . | . . . Time . | . . . Parts Recycled . | . . . Recycled Matter . | . . . Retrieved Matter . | . . . Retrieved Components 9 | . 9 . Parts Scanalyzed . | . . . Part Schematics Acquired . | . . . Parts Damaged . | . . . Bothacking | -11 -10 -9 ------------ Run | Yrd Mat Mat Used RIF Installer . | . . . Robots Hacked . | . . . Non-combat . | . . . Combat . | . . . Robot Hacks Applied . | . . . Relay Couplers Released . | . . . Fabnet Peak Effective % . | . . . Robots Rewired . | . . . Allies Hacked . | . . . Hacks Repelled . | . . . Allies | -11 -10 -9 -------- Run | Yrd Mat Mat Total Allies . | . . . Largest Group . | . . . Highest-Rated Group . | . . . Highest-Rated Ally . | . . . Total Orders . | . . . Ally Attacks . | . . . Total Damage . | . . . Kills . | . . . Allies Corrupted . | . . . Allies Melted . | . . . Intel | -11 -10 -9 ------- Run | Yrd Mat Mat Robot Analysis Total 2 | . . 2 Derelict Logs Recovered . | . . . Drone Launches . | . . . Drone Recoveries . | . . . Exploration | -11 -10 -9 ------------- Run | Yrd Mat Mat Turns Passed 716 | 15 365 336 Spaces Moved 524 | 13 273 238 Core . | . . . Treads . | . . . Legs 159 | 13 146 . Wheels 365 | . 127 238 Hover . | . . . Flight . | . . . Fastest Speed 80 | 120 80 80 Average Speed 92 | 120 101 80 Slowest Speed 120 | 120 120 80 Overloaded Moves . | . . . Propulsion Burnouts . | . . . Robots Hopped . | . . . Cave-ins Triggered . | . . . Exploration Rate (%) 21 | 2 37 24 Regions Visited 2 Branch Regions . Pre-discovered Areas . | . . . Known Exits Taken . | . . . Unknown Exits Taken 2 | 1 1 . Scrap Searched . | . . . Spaces Dug . | . . . Terrain Destroyed 5 | . 5 . Melee . | . . . Projectile . | . . . AOE 5 | . 5 . Terrain Rammed . | . . . Walls Destroyed . | . . . Machines Disabled . | . . . Actions | -11 -10 -9 --------- Run | Yrd Mat Mat Total 649 | 12 331 306 Wait 18 | . 11 7 Move 522 | 12 272 238 Hop . | . . . Pick Up 14 | . 7 7 Fast Attach 7 | . 6 1 Attach 4 | . 2 2 Detach 3 | . 3 . Swap 4 | . 2 2 Drop 17 | . 10 7 Fire 59 | . 17 42 Melee . | . . . Ram 1 | . 1 . Kick . | . . . Crush . | . . . Escape Stasis . | . . . Rewire . | . . . Trap . | . . . Miscellaneous . | . . . Route ------- -11/Scrapyard -10/Materials -9/Materials (discovered 1 exit: [*Sto]) History --------- Turn | Location | Event 1 | -11/Scrapyard | Discovered new exit (range 3) 16 | -11/Scrapyard | Entered Materials 300 | -10/Materials | Build established: Mutant 300 | -10/Materials | Discovered new exit (range 8) 381 | -10/Materials | Entered another Materials area 381 | -9/Materials | Evolved 2 slots: Utility x2 392 | -9/Materials | Discovered new exit (range 13) 717 | -9/Materials | Self-destructed Last Messages --------------- 00638_ S-10 Pest unfolds itself. 00640_ S-10 Pest destroyed. 00665_ C-30 ARC bursts open, deploying its payload. 00665_ S-10 Pest unfolds itself. 00665_ S-10 Pest destroyed. 00666_ K-01 Serf collects debris. 00677_ S-10 Pest destroyed. 00682_ Acquired 10 matter. 00685_ K-01 Serf collects debris. 00686_ S-10 Pest destroyed. 00688_ K-01 Serf collects debris. 00699_ S-10 Pest knocked back. 00702_ S-10 Pest destroyed. 00704_ Lgt. Armor Plating destroyed. 00711_ Lgt. Cannon destroyed. 00711_ Lgt. Ion Engine destroyed. 00711_ Destroyed Flight Unit. 00711_ S-10 Pest knocked back. 00713_ Weapon Shielding destroyed. 00717_ S-10 Pest destroyed. Map ----- +----------------------------------------------------+ | # #?????# ## #?????????????????? | | # #?????# ##% = #?? #????????????????? | | + [= #?????# ####+###??? ??????????????? | | # [ = #?????# #??=%!?????? ????????????? | | # == #?????+ #? % ??????? ??????????? | | # #?????# #? ???????### ?????????? | | # #?????## ### ??????????? #?????????? | | #####+####??????# #?# #????????????#?????????? | | #?????????# #?# #??????????????????????? | | ##### #?????????# #?# #??????????????????????? | | #####+#?????????# #?#######??????????????????????? | | #?????????# #??????????????????????????????? | | * #?????????# #??????????????????????????????? | | #?????????# #??????????????????????????????? | | " """ #?????????# #??????????????????????????????? | | " """ #?????????# #??????????????????????????????? | | " """ #?????????# #??????????????????????????????? | | #?????????# #????????????????????#?????????? | | #?????????# #?????????????????? ##????????? | | #+############### ################# #????????? | | % *[%*%%[%% #????????? | | % s [*%%=%! #????????? | | =%=s %==[% ???? | | ##########+#############/### #### % #????????? | | ????????????????????# ![=% # #?????????????????? | | ????????????????????# @ # #?????????????????? | | ???????????? + s=s/ # #?????????????????? | | ??????????"" ####### """ # #?????????????????? | | ????????????????????# """ # #?????????????????? | | ????????????????????# """ # #?????????????????? | | ????????????????????######## #?????????????????? | | #############??????????????# #?????????????????? | | ????????????? #?????????????????? | | ????????????? #?????????????????? | | ????????????? #?????????????????? | | ""??????????????? ?????????????????? | | ######### ""??????????????? ?????????????????? | | ???????????????????????????? ?????????????????? | | ???????????????????????????? #?????????????????? | | ???????????????????????????? ??????????????????? | | ?????????????????????????????????????????????????? | | ?????????????????????????????????????????????????? | | ?????????????????????????????????????????????????? | | ?????????????????????????????????????????????????? | | ?????????????????????????????????????????????????? | | ?????????????????????????????????????????????????? | | ???????????????????????????????????????????o?????? | | ?????????????????????????????????????????????????? | | ?????????????????????????????????????????????????? | | ?????????????????????????????????????????????????? | +----------------------------------------------------+ Best States ------------- Heat Dissipation 35 Energy Generation 10 Energy Capacity 125 Matter Stores 300 Matter Capacity 300 Sight Range 18 Terrain Scan Density 10 Armor Coverage 150 Weapon Shielding 33 Evasion (%) 55 Authchip Count 1 Item Schematics ----------------- None Robot Schematics ------------------ None Fabricated ------------ Nothing Alien Tech Used ----------------- None Achievements -------------- None Challenges ------------ None Game ------ Seed MagneticPitchforkScrap Manual? 0 Play Time 00:10:14 Cumulative 831.2 hours Start 2024.08.03 @ 16:08:45 End 2024.08.03 @ 16:23:11 Sessions 2 Manual Loads 0 Difficulty Rogue Special Mode None Game No. 987 Rogue 708 Adventurer 124 Explorer 155 Win Type - Total 34 Types 27/0/5/1/0/0/0/1/0 Lore% 70 Gallery% 88 Achievement% 78 Wizard Run 0 Options --------- Layout 0 ASCII 0 Keyboard 1 Movement Numpad Keybinds 0 Fullscreen 2 Font 18/SmallcapsGlow Map View 76x50 Zoom Use 0% Tactical HUD 1 Map Filters NONE Filters NONE Steam 1 RUN: 6adf4335-9958-4325-8cc5-5c15f1995821